bitfinex/quotes_BTCUSD_20250303
["timestamp","ask_amount","ask_price","bid_price","bid_amount"]
[1741043130521,0.231559,86371.0,86364.0,0.231577]
[1741043130696,0.231559,86371.0,86361.0,0.231583]
[1741043130896,0.231562,86370.0,86365.0,0.00633915]
[1741043131102,0.231562,86370.0,86363.0,0.23158]
[1741043131304,0.231571,86367.0,86366.0,0.00633915]
[1741043131655,0.231571,86367.0,86340.0,0.0788]
[1741043131656,0.231614,86351.0,86348.0,0.10652]
[1741043131803,0.231572,86366.0,86348.0,0.10652]
[1741043132005,0.231572,86366.0,86331.0,0.0129755]
[1741043132006,0.231615,86350.0,86338.0,0.10676]
[1741043132211,0.231615,86350.0,86335.0,1e-06]
[1741043132212,0.3,86349.0,86335.0,1e-06]
[1741043132423,0.531663,86332.0,86331.0,5e-07]
[1741043132603,0.59645894,86332.0,86331.0,5e-07]
[1741043133007,0.3,86331.0,86322.0,5e-07]
[1741043133211,0.3,86331.0,86307.0,0.0001701]
[1741043133212,0.531701,86318.0,86317.0,3e-07]
[1741043133411,0.33426819,86318.0,86317.0,3e-07]
[1741043133635,0.231693,86321.0,86317.0,3e-07]
[1741043133834,0.3,86320.0,86317.0,3e-07]
[1741043134070,0.231701,86318.0,86317.0,3e-07]
[1741043134651,0.331701,86318.0,86317.0,3e-07]
[1741043134858,0.231701,86318.0,86317.0,3e-07]
[1741043135108,0.34635295,86318.0,86317.0,3e-07]
[1741043135255,0.231701,86318.0,86317.0,3e-07]
[1741043135439,0.00011823,86340.0,86317.0,3e-07]
[1741043135857,0.00011823,86340.0,86339.0,0.231645]
[1741043136075,2.3e-07,86340.0,86339.0,0.34618585]
[1741043136284,0.23159,86360.0,86352.0,0.231607]
[1741043136485,0.1,86392.0,86338.0,0.0766]
[1741043136686,0.05085862,86408.0,86339.0,0.21491627]
[1741043136887,0.1,86402.0,86339.0,0.10966127]
[1741043137133,0.15375386,86401.0,86358.0,0.231591]
[1741043137339,0.15375386,86401.0,86345.0,0.10836]
[1741043137340,0.1,86391.0,86345.0,0.10836]
[1741043137538,0.00170586,86390.0,86345.0,0.10836]
[1741043137851,0.00170586,86390.0,86358.0,0.231593]
[1741043138055,0.3,86366.0,86346.0,0.339904]
[1741043138254,0.231567,86368.0,86361.0,0.231584]
[1741043138560,0.3,86377.0,86346.0,0.339905]
[1741043138855,0.00170586,86376.0,86346.0,0.10828]
[1741043139093,0.3,86375.0,86341.0,0.10792]
[1741043139246,0.231596,86357.0,86341.0,0.10792]
[1741043139445,0.231611,86352.0,86341.0,0.339559]
[1741043139655,0.00011875,86375.0,86341.0,0.339559]
[1741043139656,0.231624,86347.0,86341.0,0.10792]
[1741043139996,0.231624,86347.0,86323.0,0.0498]
[1741043139997,0.231654,86336.0,86323.0,0.0498]
[1741043140198,0.23167,86330.0,86323.0,0.231687]
[1741043140404,0.231687,86323.0,86322.0,0.082]
[1741043140558,0.231687,86323.0,86317.0,3e-07]
[1741043140559,0.231701,86318.0,86317.0,3e-07]
[1741043140739,0.531701,86318.0,86317.0,3e-07]
[1741043140943,0.531701,86318.0,86317.0,3.2e-07]
[1741043141611,0.231701,86318.0,86317.0,3.2e-07]
[1741043143213,0.24987252,86318.0,86317.0,3.2e-07]
[1741043143534,0.35119897,86318.0,86317.0,3.2e-07]
[1741043143770,0.24987252,86318.0,86317.0,3.2e-07]
[1741043143972,0.231697,86320.0,86317.0,3.2e-07]
[1741043144292,0.231701,86318.0,86317.0,3.2e-07]
[1741043144488,0.231701,86318.0,86308.0,0.00399032]
[1741043144689,0.00039576,86318.0,86317.0,0.231704]
[1741043144912,0.00039576,86318.0,86317.0,0.24624485]
[1741043145204,0.00039576,86318.0,86317.0,0.24460353]
[1741043145624,0.00039576,86318.0,86317.0,0.25914438]
[1741043146259,0.00039576,86318.0,86317.0,0.25931458]
[1741043146615,0.00039576,86318.0,86317.0,0.24477373]
[1741043146821,0.00039576,86318.0,86317.0,0.01306973]
[1741043147063,0.00039576,86318.0,86317.0,0.24477373]
[1741043147266,0.00039576,86318.0,86317.0,0.01306973]
[1741043147872,0.53209676,86318.0,86317.0,0.01306973]
[1741043148278,0.00039576,86318.0,86317.0,0.2318742]
[1741043148476,0.00039576,86318.0,86317.0,0.24641505]
[1741043148652,0.00039576,86318.0,86317.0,0.25917004]
[1741043148851,0.00039576,86318.0,86317.0,0.24462919]
[1741043149281,0.23209676,86318.0,86317.0,0.01292519]
[1741043149818,0.53209676,86318.0,86317.0,0.0001702]
[1741043149976,0.64674871,86318.0,86317.0,0.0001702]
[1741043150554,0.53209676,86318.0,86317.0,0.0001702]
[1741043153514,0.53209676,86318.0,86317.0,2e-07]
[1741043154963,0.00039576,86318.0,86291.0,0.339971]
[1741043155158,0.231757,86297.0,86291.0,0.1082]
[1741043155297,0.23176,86296.0,86295.0,0.01282487]
[1741043155710,0.23176,86296.0,86280.0,0.00499]
[1741043155711,0.531763,86295.0,86280.0,0.00499]
[1741043156352,0.231754,86299.0,86281.0,0.0016227]
[1741043156552,0.231763,86295.0,86283.0,0.231793]
[1741043156794,0.0487,86331.0,86284.0,0.32312233]
[1741043156980,0.00170586,86330.0,86294.0,0.01796114]
[1741043157534,0.3,86311.0,86294.0,0.01796114]
[1741043157710,0.231749,86301.0,86294.0,0.01796114]
[1741043157887,0.231751,86300.0,86294.0,0.236753]
[1741043158098,0.231763,86295.0,86294.0,0.00499]
[1741043158393,0.231763,86295.0,86294.0,0.0051602]
[1741043158596,0.231763,86295.0,86294.0,0.01813134]
[1741043158815,0.231755,86298.0,86294.0,0.01813134]
[1741043159018,0.0487,86331.0,86294.0,0.01813134]
[1741043159244,0.231722,86311.0,86300.0,0.231749]
[1741043159382,0.3234,86342.0,86301.0,0.00162209]
[1741043159737,0.23243816,86318.0,86309.0,0.231723]
[1741043159948,0.231704,86317.0,86302.0,0.0791]
[1741043160103,0.23172,86311.0,86310.0,0.01294476]
[1741043160307,0.23172,86311.0,86294.0,0.5584252]
[1741043160530,0.231763,86295.0,86294.0,0.3266602]
[1741043160729,0.231763,86295.0,86294.0,0.0051602]
[1741043160927,0.3,86311.0,86294.0,0.2369242]
[1741043161146,0.3234,86334.0,86294.0,0.2369242]
[1741043161147,0.3234,86334.0,86296.0,0.01454085]
[1741043161382,0.23243816,86318.0,86298.0,0.01454085]
[1741043161505,0.00073616,86318.0,86310.0,0.231721]
[1741043161722,0.00073616,86318.0,86317.0,0.231704]
[1741043162288,0.00073616,86318.0,86317.0,0.553204]
[1741043162421,0.00073616,86318.0,86317.0,0.56774485]
[1741043163635,0.00073616,86318.0,86317.0,0.553204]
[1741043164206,0.00073616,86318.0,86317.0,0.56774485]
[1741043164356,0.00073616,86318.0,86317.0,0.553204]
[1741043164590,0.00073616,86318.0,86317.0,0.56774485]
[1741043164796,0.231574,86366.0,86333.0,0.01454085]
[1741043164997,0.0778,86394.0,86337.0,0.231648]
[1741043164998,0.1,86386.0,86337.0,0.231648]
[1741043165205,0.3,86359.0,86338.0,0.10804]
[1741043165405,0.0003404,86372.0,86339.0,0.00162138]
[1741043165583,0.0003404,86372.0,86356.0,0.231599]
[1741043165784,0.231583,86362.0,86356.0,0.3215]
[1741043165983,0.0003404,86372.0,86356.0,0.3215]
[1741043166207,0.2318964,86372.0,86362.0,0.231583]
[1741043166409,0.0003404,86372.0,86357.0,0.3215]
[1741043166611,0.0003404,86372.0,86371.0,0.24609985]
[1741043166766,0.0003404,86372.0,86371.0,0.41294085]
[1741043166972,0.00045913,86372.0,86371.0,0.3984]
[1741043167536,0.00045913,86372.0,86371.0,0.629959]
[1741043167871,0.00045913,86372.0,86371.0,0.3984]
[1741043168089,0.00045913,86372.0,86371.0,0.629959]
[1741043168570,0.00045913,86372.0,86365.0,0.1082]
[1741043168571,0.231569,86368.0,86365.0,0.1082]
[1741043168717,0.23159,86360.0,86349.0,0.00162102]
[1741043168917,0.00045913,86372.0,86348.0,0.3215]
[1741043169134,0.00045913,86372.0,86371.0,0.231559]
[1741043169646,0.3,86393.0,86379.0,0.231537]
[1741043169789,0.3,86388.0,86377.0,0.10752]
[1741043170007,0.231516,86387.0,86380.0,0.01241609]
[1741043170230,0.231516,86387.0,86381.0,0.01199361]
[1741043170461,0.231516,86387.0,86381.0,0.0244097]
[1741043170719,0.3,86388.0,86381.0,0.0244097]
[1741043170890,0.231529,86382.0,86381.0,0.0244097]
[1741043171186,0.231529,86382.0,86381.0,0.01199361]
[1741043171616,0.531498,86394.0,86381.0,0.01199361]
[1741043171848,0.231523,86385.0,86382.0,0.01195136]
[1741043172025,0.231523,86385.0,86382.0,0.02436745]
[1741043172235,0.005,86396.0,86382.0,0.01241609]
[1741043172438,0.005,86396.0,86395.0,0.231494]
[1741043172680,0.005,86396.0,86395.0,0.552994]
[1741043172882,0.005,86396.0,86395.0,0.5651942]
[1741043173054,0.005,86396.0,86395.0,0.57973505]
[1741043174116,0.005,86396.0,86395.0,0.70313505]
[1741043174491,0.005,86396.0,86395.0,0.70813505]
[1741043174652,0.005,86396.0,86395.0,0.70313505]
[1741043175166,0.005,86396.0,86395.0,0.47164105]
[1741043175370,0.005,86396.0,86395.0,0.70313505]
[1741043175767,0.005,86396.0,86395.0,0.6418942]
[1741043176380,0.005,86396.0,86395.0,0.65643505]
[1741043177357,0.005,86396.0,86395.0,0.77843505]
[1741043177600,0.005,86396.0,86395.0,0.65643505]
[1741043178045,0.005,86410.0,86395.0,0.65643505]
[1741043178046,6e-07,86405.0,86404.0,0.33147]
[1741043178331,0.005,86410.0,86409.0,0.34599785]
[1741043178533,0.00539593,86410.0,86409.0,0.34599785]
[1741043178692,0.00539593,86410.0,86409.0,0.24599785]
[1741043178905,0.00539593,86410.0,86409.0,0.3557336]
[1741043179460,9.3e-07,86410.0,86409.0,0.6772336]
[1741043179662,0.005,86451.0,86422.0,0.331422]
[1741043179855,0.00511868,86423.0,86422.0,0.71396285]
[1741043180059,0.00511868,86423.0,86422.0,0.72365951]
[1741043180401,6.8e-07,86423.0,86422.0,0.80515951]
[1741043181448,0.005,86451.0,86436.0,0.24592585]
[1741043181648,0.005,86451.0,86436.0,0.35160585]
[1741043181862,0.005,86451.0,86436.0,0.36109587]
[1741043182057,0.005,86451.0,86436.0,0.25541587]
[1741043182425,0.005,86451.0,86436.0,0.36065587]
[1741043182769,1e-06,86437.0,86436.0,0.86385587]
[1741043183455,0.005,86451.0,86450.0,0.231347]
[1741043183599,0.00511861,86451.0,86450.0,0.56738785]
[1741043183935,0.00511861,86451.0,86450.0,0.57682198]
[1741043185357,0.00511861,86451.0,86450.0,0.34547498]
[1741043185710,0.00511861,86451.0,86450.0,0.33093413]
[1741043185845,0.00511861,86451.0,86450.0,0.43621413]
[1741043186458,0.00511861,86451.0,86450.0,0.66756113]
[1741043186850,0.00511861,86451.0,86450.0,0.43621413]
[1741043187695,0.23646261,86451.0,86450.0,0.33093413]
[1741043187910,0.28094578,86451.0,86450.0,0.0065692]
[1741043188217,0.231393,86433.0,86432.0,0.105]
[1741043188420,0.0003404,86459.0,86450.0,0.00509248]
[1741043188625,0.0003404,86459.0,86439.0,0.231375]
[1741043188626,0.231342,86452.0,86439.0,0.231375]
[1741043188829,0.0003404,86459.0,86451.0,0.00516273]
[1741043189042,0.0003404,86459.0,86450.0,0.462692]
[1741043189242,0.231335,86455.0,86452.0,0.00516273]
[1741043189442,0.0003404,86459.0,86432.0,0.10511861]
[1741043189443,0.0003404,86459.0,86441.0,0.3215]
[1741043189659,0.231347,86451.0,86441.0,0.3215]
[1741043190067,0.0003404,86459.0,86441.0,0.3215]
[1741043190068,0.231369,86442.0,86441.0,0.3215]
[1741043190569,0.231369,86442.0,86432.0,0.10511861]
[1741043190570,0.3,86455.0,86433.0,0.3215]
[1741043190809,0.0003404,86459.0,86434.0,0.00161945]
[1741043190982,0.231354,86448.0,86435.0,0.3215]
[1741043191198,0.0003404,86459.0,86436.0,0.01616029]
[1741043191419,0.231371,86442.0,86437.0,0.3215]
[1741043191578,0.0003404,86459.0,86437.0,0.3215]
[1741043191777,0.231351,86449.0,86439.0,0.231374]
[1741043191977,0.231344,86452.0,86442.0,0.231366]
[1741043192160,0.231359,86446.0,86442.0,0.3215]
[1741043192358,0.231378,86439.0,86433.0,0.3215]
[1741043192602,0.0003404,86459.0,86449.0,0.231349]
[1741043192813,0.231341,86453.0,86437.0,0.231382]
[1741043193015,0.231331,86457.0,86438.0,0.00161937]
[1741043193233,0.0003404,86459.0,86451.0,0.231342]
[1741043193537,0.0003404,86459.0,86452.0,0.46268]
[1741043193696,0.0003404,86459.0,86452.0,0.231339]
[1741043194041,0.0003404,86459.0,86449.0,0.231349]
[1741043194042,0.0003404,86459.0,86446.0,0.3215]
[1741043194322,0.231355,86447.0,86446.0,0.3215]
[1741043194522,0.231393,86433.0,86428.0,0.3215]
[1741043194773,0.231393,86433.0,86432.0,0.00011861]
[1741043195257,0.231387,86435.0,86432.0,0.00011861]
[1741043195465,0.00034,86449.0,86432.0,0.00011861]
[1741043195466,0.231384,86437.0,86432.0,0.00011861]
[1741043195838,0.00034,86449.0,86448.0,0.231352]
[1741043198282,0.00034,86449.0,86426.0,0.0768]
[1741043198474,0.00034,86449.0,86434.0,0.10424]
[1741043198690,0.00034,86449.0,86448.0,0.231352]
[1741043199108,0.00034,86449.0,86448.0,0.552852]
[1741043199317,0.00034,86449.0,86448.0,0.56739285]
[1741043200619,0.00034,86449.0,86448.0,0.552852]
[1741043200751,0.23169,86449.0,86448.0,0.3215]
[1741043200958,0.23169,86449.0,86448.0,0.42542]
[1741043201167,0.23169,86449.0,86448.0,0.3215]
[1741043201366,0.00034,86449.0,86448.0,0.3215]
[1741043201566,0.00034,86449.0,86448.0,0.552852]
[1741043202614,0.00034,86449.0,86448.0,0.56739285]
[1741043203024,0.00034,86449.0,86448.0,0.64529285]
[1741043204170,0.23169,86449.0,86448.0,0.3215]
[1741043204357,0.00034,86449.0,86448.0,0.3215]
[1741043204528,0.23169,86449.0,86448.0,0.3215]
[1741043204928,0.00034,86449.0,86448.0,0.3215]
[1741043205128,0.00034,86449.0,86448.0,0.56739285]
[1741043206081,0.00034,86449.0,86448.0,0.3215]
[1741043206082,0.23169,86449.0,86448.0,0.3215]
[1741043206258,0.00034,86449.0,86448.0,0.3215]
[1741043206865,0.23169,86449.0,86448.0,0.3215]
[1741043207645,0.00034,86449.0,86448.0,0.3215]
[1741043208007,0.231355,86447.0,86445.0,0.1032]
[1741043208148,0.00034,86449.0,86445.0,0.1032]
[1741043208581,0.00034,86449.0,86446.0,0.231356]
[1741043209008,0.00034,86449.0,86448.0,0.231352]
[1741043209709,0.00034,86449.0,86448.0,0.56739285]
[1741043211492,0.00034,86449.0,86448.0,0.66739285]
[1741043211710,0.00034,86449.0,86448.0,0.74239285]
[1741043212474,0.0003396,86451.0,86448.0,0.74239285]
[1741043212475,6e-07,86451.0,86450.0,0.231347]
[1741043212680,6e-07,86451.0,86450.0,0.56738785]
[1741043212855,0.0003406,86472.0,86471.0,0.231291]
[1741043213063,0.0003406,86472.0,86471.0,0.66969185]
[1741043213262,0.0003406,86472.0,86467.0,0.231301]
[1741043213465,0.0003406,86472.0,86457.0,0.10248]
[1741043213658,0.0003406,86472.0,86459.0,0.231323]
[1741043213865,0.0003406,86472.0,86460.0,0.00161897]
[1741043214066,0.0003406,86472.0,86461.0,0.231318]
[1741043214267,0.0003406,86472.0,86471.0,0.231291]
[1741043216388,0.0003406,86472.0,86468.0,0.231298]
[1741043216710,0.0003406,86472.0,86471.0,0.231291]
[1741043217057,0.231304,86467.0,86461.0,0.3215]
[1741043217234,0.231309,86465.0,86461.0,0.3215]
[1741043217459,0.231291,86471.0,86463.0,0.231311]
[1741043217665,0.2316306,86472.0,86464.0,0.231309]
[1741043217844,0.231304,86467.0,86461.0,0.552816]
[1741043218020,0.231308,86465.0,86461.0,0.3215]
[1741043218565,0.0003406,86472.0,86463.0,0.231311]
[1741043218792,0.0003406,86472.0,86460.0,0.10196]
[1741043218987,0.0003406,86472.0,86470.0,0.231291]
[1741043219190,0.0003406,86472.0,86471.0,0.231291]
[1741043220212,0.0003406,86472.0,86471.0,0.552791]
[1741043220593,0.2316286,86472.0,86471.0,0.3215]
[1741043220985,0.2316286,86472.0,86457.0,0.231327]
[1741043220986,0.2316296,86472.0,86457.0,0.231327]
[1741043221150,0.0003406,86472.0,86461.0,0.231316]
[1741043221369,0.231298,86469.0,86455.0,0.10132]
[1741043221531,0.231298,86469.0,86459.0,0.231321]
[1741043221743,0.231318,86461.0,86455.0,0.10132]
[1741043221938,0.231295,86470.0,86461.0,0.2]
[1741043222169,0.231299,86468.0,86461.0,0.2]
[1741043222306,0.231315,86462.0,86461.0,0.2]
[1741043222503,0.231291,86471.0,86461.0,0.2]
[1741043222748,0.231298,86469.0,86461.0,0.431318]
[1741043222945,0.0003406,86472.0,86461.0,0.2]
[1741043223162,0.2316306,86472.0,86461.0,0.2]
[1741043223366,0.0003406,86472.0,86461.0,0.2]
[1741043223797,0.0003406,86472.0,86471.0,0.231291]
[1741043223951,0.0003406,86472.0,86462.0,0.3215]
[1741043224148,0.231295,86470.0,86463.0,0.231312]
[1741043224373,0.231291,86471.0,86462.0,0.3215]
[1741043224591,0.231301,86468.0,86462.0,0.3215]
[1741043224784,0.231297,86469.0,86462.0,0.552814]
[1741043224989,0.2313,86468.0,86462.0,0.3215]
[1741043225193,0.0003406,86472.0,86462.0,0.3215]
[1741043225393,0.0003406,86472.0,86463.0,0.1014]
[1741043225635,0.23131,86464.0,86463.0,0.1014]
[1741043225954,0.231315,86462.0,86461.0,0.2]
[1741043226163,0.23135,86449.0,86439.0,0.10124]
[1741043226367,0.1379231,86450.0,86439.0,0.10124]
[1741043226610,0.23135,86449.0,86439.0,0.10124]
[1741043226826,0.23135,86449.0,86425.0,0.231413]
[1741043226999,0.28085,86449.0,86432.0,0.10128]
[1741043227598,0.28085,86449.0,86438.0,0.231378]
[1741043227850,0.28085,86449.0,86432.0,0.10128]
[1741043228296,0.28085,86449.0,86436.0,0.231384]
[1741043228500,0.28085,86449.0,86433.0,0.231392]
[1741043228501,0.28085,86449.0,86419.0,0.01454085]
[1741043228702,0.28085,86449.0,86432.0,0.10088]
[1741043229115,0.28085,86449.0,86432.0,0.332275]
[1741043229409,0.28085,86449.0,86428.0,0.231405]
[1741043229559,0.28085,86449.0,86430.0,0.10084]
[1741043230605,0.28085,86449.0,86432.0,0.1006]
[1741043230989,0.23135,86449.0,86433.0,0.23139]
[1741043231189,0.53135,86449.0,86432.0,0.1006]
[1741043231591,0.64600195,86449.0,86432.0,0.1006]
[1741043231996,0.64600195,86449.0,86429.0,0.10048]
[1741043232380,0.3,86449.0,86446.0,0.231356]
[1741043232605,0.3,86449.0,86448.0,0.2315218]
[1741043232926,0.3,86449.0,86448.0,0.0001698]
[1741043233374,0.3,86449.0,86448.0,0.2315218]
[1741043233595,0.2313,86468.0,86448.0,0.0001698]
[1741043233833,0.0003394,86470.0,86448.0,0.0001698]
[1741043234056,0.3,86469.0,86457.0,0.231327]
[1741043234282,0.2316344,86470.0,86454.0,0.10084]
[1741043234283,0.0003394,86470.0,86454.0,0.10084]
[1741043234501,0.0003394,86470.0,86460.0,0.231318]
[1741043234731,0.0003394,86470.0,86454.0,0.10084]
[1741043234732,0.0003394,86470.0,86456.0,0.231329]
[1741043234964,0.3,86467.0,86454.0,0.231335]
[1741043235197,0.0003394,86470.0,86448.0,0.1009698]
[1741043235392,0.231338,86454.0,86448.0,0.1009698]
[1741043235550,0.231339,86453.0,86448.0,0.1009698]
[1741043235753,0.3,86461.0,86449.0,0.01454085]
[1741043236077,0.2316296,86472.0,86450.0,0.01155107]
[1741043236276,0.0003406,86472.0,86463.0,0.231311]
[1741043236522,0.0003406,86472.0,86469.0,0.231296]
[1741043236662,0.0003406,86472.0,86461.0,0.231316]
[1741043237002,0.231315,86463.0,86453.0,0.01454085]
[1741043237163,0.231297,86469.0,86458.0,0.231324]
[1741043237164,0.3,86468.0,86458.0,0.231324]
[1741043237572,0.0003406,86472.0,86469.0,0.231296]
[1741043238668,0.0003406,86472.0,86469.0,0.24583685]
[1741043239203,0.0003406,86472.0,86469.0,0.56733685]
[1741043239637,0.0053402,86492.0,86471.0,0.3]
[1741043239854,0.0053402,86492.0,86491.0,0.24577785]
[1741043240065,0.00011881,86492.0,86491.0,0.84535785]
[1741043240244,8.1e-07,86492.0,86491.0,0.89125785]
[1741043241377,4.1e-07,86497.0,86496.0,0.1]
[1741043241722,0.0003406,86524.0,86504.0,0.24574385]
[1741043242111,0.00539522,86505.0,86504.0,0.56724385]
[1741043244258,0.00539522,86505.0,86494.0,0.231229]
[1741043244462,0.00539522,86505.0,86491.0,0.3991]
[1741043244463,0.23659522,86505.0,86504.0,0.10044]
[1741043244613,0.231221,86497.0,86496.0,0.10044]
[1741043244991,0.231218,86499.0,86496.0,0.010044]
[1741043245184,0.231237,86491.0,86490.0,0.1004]
[1741043245339,0.231222,86497.0,86490.0,0.1004]
[1741043245662,0.00539522,86505.0,86459.0,0.0463]
[1741043245882,0.00539522,86505.0,86476.0,0.10048]
[1741043245883,0.231254,86485.0,86476.0,0.10048]
[1741043246119,0.00539522,86505.0,86477.0,0.01454085]
[1741043246120,0.00573482,86505.0,86477.0,0.01454085]
[1741043246246,0.00573482,86505.0,86504.0,0.231203]
[1741043246448,0.00573482,86505.0,86504.0,0.34646385]
[1741043246648,0.23693482,86505.0,86504.0,0.10072]
[1741043246873,0.00573482,86505.0,86478.0,0.3215]
[1741043247075,0.231226,86496.0,86485.0,0.231252]
[1741043247309,0.231229,86495.0,86485.0,0.231252]
[1741043247518,0.23123,86494.0,86486.0,0.01454085]
[1741043247731,0.531208,86502.0,86486.0,0.01454085]
[1741043247870,0.00573482,86505.0,86483.0,0.231259]
[1741043248069,0.00170586,86504.0,86479.0,0.1008]
[1741043248473,0.231249,86487.0,86478.0,0.3215]
[1741043248680,0.23127,86479.0,86478.0,0.3215]
[1741043248882,0.231262,86482.0,86478.0,0.3215]
[1741043249198,0.23127,86479.0,86478.0,0.3215]
[1741043249613,0.231249,86487.0,86478.0,0.3215]
[1741043249859,0.462335,86518.0,86479.0,0.24742868]
[1741043249860,0.0815,86513.0,86479.0,0.24742868]
[1741043250064,0.00170586,86517.0,86492.0,0.01454085]
[1741043250203,0.231211,86502.0,86492.0,0.24577285]
[1741043250557,0.0053396,86505.0,86493.0,0.01454085]
[1741043250765,0.0053396,86505.0,86496.0,0.01454085]
[1741043250964,0.00170586,86531.0,86497.0,0.10064]
[1741043251220,0.2312,86505.0,86497.0,0.10064]
[1741043251398,0.3,86518.0,86497.0,0.10064]
[1741043251692,0.531219,86498.0,86497.0,0.10064]
[1741043251898,0.531219,86498.0,86497.0,0.110704]
[1741043253102,0.531119,86498.0,86497.0,0.110704]
[1741043253301,0.23124,86490.0,86489.0,0.10036]
[1741043253685,0.23127,86479.0,86475.0,0.0755]
[1741043253888,0.23127,86479.0,86478.0,0.10051861]
[1741043254352,0.3,86496.0,86478.0,0.10051861]
[1741043254552,0.231258,86484.0,86478.0,0.10051861]
[1741043254731,0.231258,86484.0,86479.0,0.01005186]
[1741043254946,0.231249,86487.0,86479.0,0.01005186]
[1741043255104,0.231254,86485.0,86479.0,0.01005186]
[1741043255303,0.231249,86487.0,86479.0,0.01005186]
[1741043255524,0.3,86489.0,86480.0,0.24580585]
[1741043255691,0.3,86489.0,86480.0,0.01454085]
[1741043255896,0.3,86489.0,86478.0,0.10051861]
[1741043255897,0.21388062,86518.0,86486.0,0.23125]
[1741043256108,0.3,86494.0,86481.0,0.231264]
[1741043256437,0.231236,86492.0,86484.0,0.01454085]
[1741043256639,0.231232,86493.0,86485.0,0.01454085]
[1741043256963,0.3,86494.0,86485.0,0.24579385]
[1741043257170,0.3,86498.0,86483.0,0.01454085]
[1741043257313,0.0458,86533.0,86493.0,0.01454085]
[1741043257518,0.231141,86528.0,86495.0,0.0493]
[1741043257722,0.10312245,86546.0,86497.0,0.01454085]
[1741043257925,0.3,86516.0,86499.0,0.01454085]
[1741043258176,0.3,86516.0,86501.0,0.01454085]
[1741043258405,0.3,86516.0,86508.0,0.231189]
[1741043258559,0.3,86516.0,86509.0,0.01454085]
[1741043258763,0.3,86516.0,86513.0,0.231177]
[1741043258975,0.3,86525.0,86506.0,0.231195]
[1741043259204,0.3,86525.0,86510.0,0.231185]
[1741043259358,0.531147,86525.0,86510.0,0.231185]
[1741043259741,0.231171,86516.0,86505.0,0.2312]
[1741043260021,0.3,86519.0,86509.0,0.231189]
[1741043260164,0.3,86517.0,86506.0,0.231197]
[1741043260534,0.462349,86515.0,86506.0,0.231197]
[1741043260709,0.231173,86515.0,86503.0,0.3215]
[1741043260918,0.00039522,86525.0,86503.0,0.3215]
[1741043261109,0.231179,86513.0,86503.0,0.3215]
[1741043261316,0.231188,86510.0,86503.0,0.3215]
[1741043262081,0.23119,86509.0,86503.0,0.3215]
[1741043262505,0.3,86519.0,86503.0,0.552704]
[1741043262944,0.231178,86514.0,86503.0,0.552704]
[1741043263123,0.231184,86511.0,86503.0,0.552704]
[1741043263393,0.231179,86513.0,86505.0,0.231199]
[1741043263594,0.00039522,86525.0,86504.0,0.231201]
[1741043263722,0.3,86515.0,86508.0,0.231192]
[1741043263924,0.00039522,86525.0,86509.0,0.01454085]
[1741043264151,0.231167,86518.0,86510.0,0.231185]
[1741043264351,0.3,86517.0,86507.0,0.24573385]
[1741043264552,0.00039522,86525.0,86504.0,0.01454085]
[1741043264727,0.00039522,86525.0,86507.0,0.01454085]
[1741043265282,0.00039522,86525.0,86506.0,0.01454085]
[1741043265427,0.00039522,86525.0,86505.0,0.2312]
[1741043265639,0.00039522,86525.0,86506.0,0.01454085]
[1741043265984,0.3,86521.0,86506.0,0.24573785]
[1741043266184,0.3,86521.0,86503.0,0.3215]
[1741043266596,0.231203,86504.0,86503.0,0.3215]
[1741043266837,0.231214,86500.0,86487.0,0.3215]
[1741043267024,0.3,86515.0,86492.0,0.09868]
[1741043267211,0.00170586,86514.0,86492.0,0.09868]
[1741043267418,0.231231,86494.0,86492.0,0.09868]
[1741043267558,0.231232,86493.0,86492.0,0.09868]
[1741043268007,0.231232,86493.0,86492.0,0.108548]
[1741043268811,0.3,86523.0,86492.0,0.108548]
[1741043269004,1.255624,86534.0,86492.0,0.108548]
[1741043269005,0.3,86504.0,86498.0,0.231216]
[1741043269330,0.3,86504.0,86492.0,0.108548]
[1741043269513,0.231224,86496.0,86492.0,0.108548]
[1741043269714,0.231224,86496.0,86493.0,0.0108548]
[1741043269952,0.231229,86494.0,86493.0,0.0108548]
[1741043270122,0.231232,86493.0,86492.0,0.09868]
[1741043270322,0.231229,86494.0,86492.0,0.09868]
[1741043270524,0.231232,86493.0,86492.0,0.09868]
[1741043272145,0.346791,86508.0,86485.0,0.0005]
[1741043272146,0.231251,86486.0,86485.0,0.0005]
[1741043281929,0.3,86497.0,86492.0,0.231234]
[1741043282056,0.21618062,86518.0,86488.0,0.231245]
[1741043282257,0.00170586,86517.0,86492.0,0.231235]
[1741043282460,0.3,86508.0,86485.0,0.0006697]
[1741043282679,0.231224,86496.0,86489.0,0.23124]
[1741043282880,0.346752,86517.0,86489.0,0.231243]
[1741043283041,0.231221,86498.0,86489.0,0.231243]
[1741043283246,0.231204,86504.0,86491.0,0.231236]
[1741043283467,0.231215,86500.0,86489.0,0.231243]
[1741043283716,0.346752,86517.0,86488.0,0.17304]
[1741043283717,0.231224,86496.0,86488.0,0.17304]
[1741043283897,0.231243,86489.0,86488.0,0.09684]
[1741043284876,0.0003392,86546.0,86488.0,0.09684]
[1741043285117,0.00170586,86515.0,86488.0,0.09684]
[1741043285439,0.231191,86509.0,86501.0,0.231209]
[1741043285633,0.231173,86515.0,86489.0,0.33604085]
[1741043285801,0.00039522,86516.0,86491.0,0.01454085]
[1741043285802,0.23156622,86516.0,86491.0,0.01454085]
[1741043286003,0.00039522,86516.0,86515.0,0.231173]
[1741043286409,0.00039522,86516.0,86513.0,0.231177]
[1741043286663,0.00039522,86516.0,86495.0,0.01454085]
[1741043286820,0.00039522,86516.0,86515.0,0.231173]
[1741043287561,0.00039522,86516.0,86514.0,0.231175]
[1741043287562,0.02157411,86515.0,86514.0,0.231175]
[1741043288140,0.02157411,86515.0,86508.0,0.231191]
[1741043288345,0.02157411,86515.0,86491.0,0.231236]
[1741043288346,0.3,86513.0,86491.0,0.231236]